[Event "1st Serbian League 2022"]
[Site "Vrnjacka Banja"]
[Date "2022.09.23"]
[Round "4.7"]
[White "Ioannidis, Evgenios"]
[Black "Bilbija, Zoran"]
[Result "1-0"]
[ECO "D36"]
[WhiteElo "2486"]
[BlackElo "2026"]
[Annotator "TA"]
[PlyCount "77"]
[EventDate "2022.09.20"]
[EventType "team-tourn"]
[EventCountry "SRB"]
[SourceTitle "playchess.com"]
[Source "ChessBase"]
[SourceQuality "1"]
[TimeControl "40/5400+30:1800+30"]

{[%evp 24,77,10,11,25,0,0,0,42,0,29,22,49,37,49,21,39,24,29,35,22,0,0,8,14,11,129,122,132,126,174,174,166,181,163,156,197,177,173,150,243,207,220,173,259,259,247,249,296,311,565,546,29970,29971,29970,29965]} 1. c4 {[%emt 0:00:43]} e6 {[%emt 0:01:00]} 2. d4 {[%emt 0:01:44]} d5 {[%emt 0:00:20]} 3. Nc3 {[%emt 0:00:24]} Nf6 {[%emt 0:00:06]} 4. Nf3 {[%emt 0:01:06]} c6 {[%emt 0:00:54]} 5. Bg5 {[%emt 0:00:38]} Be7 {[%emt 0:00:05]} 6. e3 {[%emt 0:00:57]} Nbd7 {[%emt 0:00:08]} 7. Qc2 {[%emt 0:02:30]} O-O {[%emt 0:00:27]} 8. h3 {[%emt 0:07:22]} Re8 {[%emt 0:00:20]} 9. Bf4 {[%emt 0:07:52]} Nf8 {[%emt 0:00:36]} 10. cxd5 {[%emt 0:04:49]} exd5 {[%emt 0:00:29]} 11. Ne5 {[%emt 0:01:47]} N6d7 {[%emt 0:01:04]} 12. Nf3 {[%emt 0:13:57]} Nf6 {[%emt 0:00:24]} 13. Bd3 {[%emt 0:00:27] [#]} b6 $146 {[%emt 0:01:51] D36: Queen's Gambit Declined: Exchange Variation: Main line (5 Bg5 c6 6 Qc2).} ({Predecessor:} 13... Ng6 14. Bh2 Bd6 15. Bxd6 Qxd6 16. O-O-O b6 17. g4 Be6 18. g5 Nd7 19. Rdg1 c5 20. h4 c4 21. Bf1 Ne7 22. h5 a6 23. g6 fxg6 24. Ng5 {0-1 (33) Bruederle,K (2301)-Repp,H (2263) GER email 2001}) 14. Ne5 {[%emt 0:03:13]} Bb7 {[%emt 0:00:14]} 15. O-O {[%emt 0:00:07]} N6d7 {[%emt 0:03:01] The position is equal.} 16. e4 {[%emt 0:05:42]} Nxe5 {[%emt 0:02:21]} (16... Ne6 $5 {[%cal Re6f4]} 17. exd5 Nxf4 18. Bxh7+ Kf8 19. dxc6 Nxe5 20. cxb7 Nf3+ 21. gxf3 Bd6 $11) 17. Bxe5 {[%emt 0:00:23]} f6 {[%emt 0:00:54]} 18. Bg3 {[%emt 0:02:11] exd5 is the strong threat.} dxe4 {[%emt 0:01:18]} 19. Bc4+ {[%emt 0:01:35]} (19. Bxe4 $5 {[%cal Rc3b5]} Bd6 20. Bxd6 Qxd6 21. Rad1 $14) 19... Kh8 {[%emt 0:00:15]} 20. Bf7 {[%emt 0:00:12]} f5 {[%emt 0:04:55]} 21. Bxe8 {[%emt 0:01:27]} Qxe8 {[%emt 0:00:02]} 22. f3 {[%emt 0:01:03]} Ba6 {[%emt 0:02:42]} 23. Rfe1 {[%emt 0:00:59]} Qg6 {[%emt 0:00:36]} 24. Qf2 $36 {[%emt 0:01:25][%cal Rf3e4][%mdl 2048] White is more active.} Bd3 {[%emt 0:01:21] Black is now going downhill.} (24... Ne6 $1 $11) 25. fxe4 $16 {[%emt 0:01:50]} fxe4 {[%emt 0:00:26]} 26. Nxe4 {[%emt 0:00:55]} Bb4 {[%emt 0:04:20] Prevents Nc5.} (26... Bxe4 $16 27. Qf4 Bxg2 28. Kxg2 Bg5) 27. Nc3 $18 {[%emt 0:00:45]} Ne6 {[%emt 0:01:43][%cal Oe6d4]} 28. Be5 {[%emt 0:02:32]} Rf8 {[%emt 0:00:36]} 29. Qe3 {[%emt 0:01:27]} Ng5 {[%emt 0:01:22]} 30. Kh2 {[%emt 0:02:30]} h6 {[%emt 0:07:44]} 31. Rad1 {[%emt 0:00:56]} Ba6 {[%emt 0:00:26]} (31... Bc4 $16 32. a3 Bxc3 33. bxc3 b5) 32. a3 {[%emt 0:00:49]} Bxc3 {[%emt 0:01:38]} 33. bxc3 {[%emt 0:00:10]} Bc8 {[%emt 0:00:13]} (33... Bc4 $142 34. h4 Ne6) 34. Rf1 {[%emt 0:01:37]} Re8 {[%emt 0:00:33]} 35. Rde1 {[%emt 0:02:31][%cal Oe5g7] [#] Black must now prevent Bxg7+!} Bd7 {[%emt 0:01:56]} 36. Qg3 {[%emt 0:00:34] Strongly threatening h4.} Re7 $2 {[%emt 0:04:50]} (36... Kh7 37. h4 Ne6 38. Qxg6+ Kxg6) 37. h4 {[%emt 0:01:18]} Qh5 {[%emt 0:00:37]} 38. Rf8+ {[%emt 0:00:15]} Kh7 {[%emt 0:03:51]} 39. Qd3+ {[%emt 0:00:06] Weighted Error Value: White=0.11 (very precise) /Black=0.58} 1-0

[Event "1st Serbian League 2022"]
[Site "Vrnjacka Banja"]
[Date "2022.09.23"]
[Round "4.8"]
[White "Risteski, Emil"]
[Black "Damljanovic, Branko"]
[Result "0-1"]
[ECO "B81"]
[WhiteElo "2364"]
[BlackElo "2436"]
[Annotator "TA"]
[PlyCount "64"]
[EventDate "2022.09.20"]
[EventType "team-tourn"]
[EventCountry "SRB"]
[SourceTitle "playchess.com"]
[Source "ChessBase"]
[SourceQuality "1"]
[TimeControl "40/5400+30:1800+30"]

{[%evp 14,64,35,36,29,0,1,0,0,-16,-22,-17,0,0,36,23,33,10,13,-39,0,0,0,0,0,7,0,0,-6,-11,-45,-20,-9,-16,-18,-41,0,0,0,-22,-9,-9,-7,-12,-15,-85,-84,-204,-207,-405,-402,-513,-409]} 1. e4 {[%emt 0:00:38]} c5 {[%emt 0:12:05]} 2. Nf3 {[%emt 0:00:18]} d6 {[%emt 0:00:49]} 3. d4 {[%emt 0:00:10]} cxd4 {[%emt 0:00:01]} 4. Nxd4 {[%emt 0:00:10]} Nf6 {[%emt 0:00:02]} 5. Nc3 {[%emt 0:00:09]} a6 {[%emt 0:00:22]} 6. h3 {[%emt 0:00:10]} e6 {[%emt 0:02:21]} 7. g4 {[%emt 0:00:13]} h6 {[%emt 0:01:09]} 8. Bg2 {[%emt 0:07:31]} Be7 {[%emt 0:02:02] B81: Sicilian Scheveningen: Keres Attack.} 9. b3 {[%emt 0:11:47]} Bd7 {[%emt 0:10:42]} 10. Bb2 {[%emt 0:05:21]} Nc6 {[%emt 0:00:55] The position is equal.} 11. Nxc6 {[%emt 0:06:26]} Bxc6 {[%emt 0:00:38] [#]} 12. Qd3 $146 {[%emt 0:00:36]} ({Predecessor:} 12. Qe2 Qa5 13. O-O-O b5 14. f4 Rc8 15. a3 b4 16. axb4 Qxb4 17. Kb1 a5 18. Rhe1 {½-½ (71) Hovhannisyan,R (2607)-Muradli,M (2539) Sharjah 2022}) 12... Qa5 {[%emt 0:01:50]} 13. O-O-O {[%emt 0:02:15]} O-O-O {[%emt 0:11:22]} 14. Kb1 {[%emt 0:02:05]} h5 {[%emt 0:07:59]} 15. Qc4 {[%emt 0:27:35][%cal Oc3d5]} Kb8 {[%emt 0:06:52]} 16. b4 {[%emt 0:00:58]} (16. f3 $11) 16... Qb6 {[%emt 0:01:46]} (16... Qc7 $5 {[%cal Rh5g4]}) 17. g5 {[%emt 0:02:34]} Ne8 {[%emt 0:08:38]} 18. f4 {[%emt 0:01:20]} Nc7 {[%emt 0:00:16]} 19. a4 {[%emt 0:08:10]} f6 {[%emt 0:19:54]} 20. gxf6 {[%emt 0:09:25]} Bxf6 {[%emt 0:01:10][%cal Od6d5]} 21. a5 {[%emt 0:00:40]} (21. Qb3 $5 {[%cal Rh1f1]}) 21... Qf2 {[%emt 0:00:28][%csl LRf4,LRg2]} 22. Qf1 {[%emt 0:00:05]} Qxf1 {[%emt 0:02:01]} 23. Rhxf1 {[%emt 0:00:21]} Rhf8 {[%emt 0:00:02]} 24. Ka2 {[%emt 0:04:59]} g6 {[%emt 0:00:46]} (24... d5 $5 {[%cal Rd5e4]}) 25. Kb3 {[%emt 0:00:36]} d5 {[%emt 0:03:46][%cal Bd6d5,Bd5d4][%mdl 32]} 26. Rfe1 {[%emt 0:02:39]} Bh4 {[%emt 0:00:32][%csl LRe1,LRf4] [#] Threatens to win with ...d4.} 27. Rf1 {[%emt 0:00:35]} d4 {[%emt 0:00:25]} 28. Ne2 {[%emt 0:01:24]} Bb5 {[%emt 0:00:09]} 29. Bf3 {[%emt 0:02:21]} (29. Nxd4 $11 {remains equal.} Bxf1 30. Rxf1) 29... e5 $1 $17 {[%emt 0:00:17][%cal Be6e5,Be5d4][%mdl 32] Strongly threatening ...Ne6. Black is more active.} 30. Rg1 {[%emt 0:00:38]} (30. c4 $17 dxc3 31. Bxc3) 30... Ne6 $19 {[%emt 0:00:24]} ({Less strong is} 30... exf4 31. Nxd4 (31. Rxg6 Be8 $11) 31... Be8 32. c4 $14) 31. Bc1 $2 {[%emt 0:00:06] [#]} (31. c4 {is the only way for White.} Bc6 32. Rxg6 Nxf4 33. Nxf4 Rxf4 34. Bxh5) 31... Ng5 $1 {[%emt 0:00:58][%mdl 512]} 32. Nxd4 {[%emt 0:01:05]} (32. Rxg5 Bxg5) 32... exd4 {[%emt 0:00:18] Weighted Error Value: White=0.37/Black=0.09 (flawless)} 0-1

[Event "1st Serbian League 2022"]
[Site "Vrnjacka Banja"]
[Date "2022.09.23"]
[Round "4.9"]
[White "Tadic, Branko"]
[Black "Djokic, Mihailo"]
[Result "1-0"]
[ECO "E62"]
[WhiteElo "2455"]
[BlackElo "2197"]
[Annotator "TA"]
[PlyCount "86"]
[EventDate "2022.09.20"]
[EventType "team-tourn"]
[EventCountry "SRB"]
[SourceTitle "playchess.com"]
[Source "ChessBase"]
[SourceQuality "1"]
[TimeControl "40/5400+30:1800+30"]

{[%evp 17,86,20,30,25,21,22,52,49,47,36,113,103,104,93,100,87,119,125,125,130,122,122,114,112,118,122,112,114,116,114,160,151,182,176,176,178,172,172,247,256,241,247,360,352,466,443,582,402,396,356,618,596,3889,3572,2336,2063,6300,6622,5489,4134,29978,29981,29982,29983,29984,29985,29983,29984,29988,29989,29989]} 1. Nf3 {[%emt 0:02:48]} Nf6 {[%emt 0:00:06]} 2. d4 {[%emt 0:01:18]} g6 {[%emt 0:00:05]} 3. g3 {[%emt 0:00:05]} Bg7 {[%emt 0:00:04]} 4. Bg2 {[%emt 0:00:06]} O-O {[%emt 0:00:03]} 5. O-O {[%emt 0:00:53]} d6 {[%emt 0:00:07]} 6. c4 {[%emt 0:01:15]} Nc6 {[%emt 0:00:09]} 7. Nc3 {[%emt 0:00:34]} e5 {[%emt 0:00:06]} 8. dxe5 {[%emt 0:05:37]} dxe5 {[%emt 0:00:07]} 9. Bg5 {[%emt 0:00:32]} Be6 {[%emt 0:00:03]} 10. Qc1 {[%emt 0:04:41] E62: King's Indian: Fianchetto: 6...c6 and Panno Variation (6...Nc6) without ...a6.} Qc8 {[%emt 0:00:06]} 11. Rd1 {[%emt 0:00:19]} Nd7 {[%emt 0:04:55] The main line 11...Nd7 scores better than 11...Rd8.} 12. Bh6 {[%emt 0:03:32] White is slightly better.} Bxc4 {[%emt 0:06:38] [#]} 13. Bh3 $146 {[%emt 0:02:24]} ({Predecessor:} 13. Bxg7 Kxg7 14. Bh3 f5 15. e4 Be6 16. Ng5 Nb6 17. Nd5 Bg8 18. Qc5 Nd7 19. Qc3 {½-½ (48) Erdos,V (2609)-Bekker Jensen,S (2482) Batumi 2018}) 13... Be6 {[%emt 0:10:18]} (13... f5 $14) 14. Bxe6 $16 {[%emt 0:02:26]} fxe6 {[%emt 0:00:56]} 15. Bxg7 {[%emt 0:12:46]} (15. Ne4 Qe8 $14) 15... Kxg7 {[%emt 0:00:01]} 16. Ne4 {[%emt 0:01:50]} Qe8 {[%emt 0:09:11]} 17. b4 {[%emt 0:02:49][%cal Bb2b4,Bb4b5][%mdl 32] White has more active pieces.} Rc8 {[%emt 0:10:41]} 18. b5 {[%emt 0:05:16]} Nd4 {[%emt 0:04:36]} 19. Nxd4 {[%emt 0:01:28]} exd4 {[%emt 0:00:05]} 20. Rxd4 {[%emt 0:01:02]} Nf6 {[%emt 0:00:23]} 21. Qb2 {[%emt 0:05:04]} Kg8 {[%emt 0:05:18]} 22. Nxf6+ {[%emt 0:02:52]} Rxf6 {[%emt 0:00:05]} 23. Rad1 {[%emt 0:00:11]} e5 {[%emt 0:03:09]} (23... Rf7 $142) 24. Rd5 {[%emt 0:01:29]} Qf8 {[%emt 0:02:11]} 25. Qb3 {[%emt 0:07:37] [#] Rd8+ is the strong threat.} (25. Qxe5 Rxf2 26. Rd7 Qf6 27. Qd5+ Kh8 $16) 25... Qf7 {[%emt 0:02:32]} 26. Qe3 {[%emt 0:05:56]} (26. Rxe5 $6 Rxf2 27. Re7 Qxb3 28. axb3 Rf7 29. Rxf7 Kxf7 $14) 26... Rf8 {[%emt 0:03:23][%cal Rf6f2]} 27. f3 {[%emt 0:00:12][%cal Bf2f3,Bf3f4][%mdl 32]} c5 {[%emt 0:04:05]} (27... Qe6 $142 28. Qxa7 (28. Qxe5 Qxe5 29. Rxe5 R8f7 $16) 28... e4) 28. Qxc5 $18 {[%emt 0:03:20]} ({Don't take} 28. Qxe5 $6 Re6 29. Qb2 Rfe8 $16) 28... e4 {[%emt 0:00:14]} 29. f4 {[%emt 0:00:20]} ({Inferior is} 29. Qxa7 exf3 30. Qf2 fxe2 31. Qxe2 Rf2 $11) 29... Rf5 {[%emt 0:01:12]} (29... a6 $142 30. a4 axb5 31. Qxb5 Qc7) 30. Rxf5 {[%emt 0:01:35]} gxf5 {[%emt 0:00:29][%mdl 4096] Endgame KQR-KQR} 31. a4 {[%emt 0:04:27]} b6 {[%emt 0:00:18]} 32. Qd5 {[%emt 0:00:17]} Qxd5 {[%emt 0:06:59]} 33. Rxd5 {[%emt 0:00:09] KR-KR} Kg7 $2 {[%emt 0:00:05] [#]} (33... Rf7 34. Kf2 Kg7) 34. Rd7+ {[%emt 0:01:50]} Rf7 {[%emt 0:00:00]} 35. Rxf7+ {[%emt 0:01:00]} Kxf7 {[%emt 0:00:01] KP-KP} 36. Kf2 {[%emt 0:00:07]} h5 {[%emt 0:10:55]} 37. h3 {[%emt 0:02:27]} Ke6 {[%emt 0:06:51]} 38. g4 {[%emt 0:00:42]} fxg4 {[%emt 0:01:36]} 39. hxg4 {[%emt 0:00:07] White mates.} hxg4 {[%emt 0:00:05]} 40. Kg3 {[%emt 0:00:27]} Kd5 {[%emt 0:00:18]} 41. f5 {[%emt 0:30:41]} e3 {[%emt 0:30:32]} 42. Kxg4 {[%emt 0:01:15]} Kd4 {[%emt 0:00:12]} 43. f6 {[%emt 0:00:13]} Kd5 {[%emt 0:12:50] Black got outplayed after the opening.  Weighted Error Value: White=0.07 (flawless) /Black=0.47} 1-0

[Event "1st Serbian League 2022"]
[Site "Vrnjacka Banja"]
[Date "2022.09.23"]
[Round "4.10"]
[White "Jocev, Milan"]
[Black "Nikolovski, Nikola"]
[Result "1/2-1/2"]
[ECO "D14"]
[WhiteElo "2283"]
[BlackElo "2359"]
[Annotator "TA"]
[PlyCount "42"]
[EventDate "2022.09.20"]
[EventType "team-tourn"]
[EventCountry "SRB"]
[SourceTitle "playchess.com"]
[Source "ChessBase"]
[SourceQuality "1"]
[TimeControl "40/5400+30:1800+30"]

{[%evp 23,24,4,0]} 1. d4 {[%emt 0:00:04]} d5 {[%emt 0:00:06]} 2. c4 {[%emt 0:00:08]} c6 {[%emt 0:00:05]} 3. cxd5 {[%emt 0:00:09]} cxd5 {[%emt 0:00:08]} 4. Nf3 {[%emt 0:00:10]} Nc6 {[%emt 0:00:49]} 5. Nc3 {[%emt 0:00:11]} Nf6 {[%emt 0:00:13]} 6. Bf4 {[%emt 0:00:22]} Bf5 {[%emt 0:00:08]} 7. e3 {[%emt 0:00:14]} e6 {[%emt 0:00:07]} 8. Bd3 {[%emt 0:00:15]} Bxd3 {[%emt 0:00:15]} 9. Qxd3 {[%emt 0:00:11]} Bd6 {[%emt 0:00:03]} 10. Bxd6 {[%emt 0:00:13]} Qxd6 {[%emt 0:00:08]} 11. O-O {[%emt 0:00:06]} O-O {[%emt 0:00:08]} 12. Rfc1 {[%emt 0:00:08]} Rfc8 {[%emt 0:00:08] [#]} {Predecessor:} 13. h3 $146 {D14: Slav Defence: Exchange variation with ...Bf5.} h6 14. Nd2 Nd7 15. a3 a6 16. Rc2 Ne7 17. Rac1 Rc6 18. Ne2 Rac8 19. Rxc6 Rxc6 20. Rxc6 Qxc6 21. Qc3 g5 {½-½ (36) Li,D (2579)-Ma,Q (2645) Hangzhou 2022} 1/2-1/2

[Event "1st Serbian League 2022"]
[Site "Vrnjacka Banja"]
[Date "2022.09.23"]
[Round "4.11"]
[White "Milenkovic, Mladen"]
[Black "Stankovic, Boris"]
[Result "0-1"]
[ECO "B23"]
[WhiteElo "2379"]
[BlackElo "2208"]
[Annotator "TA"]
[PlyCount "72"]
[EventDate "2022.09.20"]
[EventType "team-tourn"]
[EventCountry "SRB"]
[SourceTitle "playchess.com"]
[Source "ChessBase"]
[SourceQuality "1"]
[TimeControl "40/5400+30:1800+30"]

{[%evp 16,72,-33,-41,-38,-68,-53,-67,-46,-60,-49,-38,-22,-31,-22,-18,50,45,43,40,40,37,84,-23,-21,-50,0,-26,-14,-141,-129,-223,-193,-177,-85,-91,-77,-80,-78,-457,-456,-679,-665,-638,-622,-590,-422,-594,-399,-722,-684,-565,-445,-1289,-1322,-29977,-29978,-29985,-6022]} 1. e4 {[%emt 0:00:04]} c5 {[%emt 0:03:22]} 2. Nc3 {[%emt 0:00:07]} Nc6 {[%emt 0:00:23]} 3. f4 {[%emt 0:00:09]} g6 {[%emt 0:00:54]} 4. Nf3 {[%emt 0:00:16]} Bg7 {[%emt 0:00:33]} 5. Bc4 {[%emt 0:00:16]} e6 {[%emt 0:10:39]} 6. d3 {[%emt 0:15:24]} Nge7 {[%emt 0:03:22]} 7. a3 {[%emt 0:05:49]} d5 {[%emt 0:08:51]} 8. Ba2 {[%emt 0:00:39]} O-O {[%emt 0:00:19]} 9. O-O {[%emt 0:00:53]} Nd4 {[%emt 0:04:05] [#] B23: Closed Sicilian: Lines without g3.} 10. Bd2 $146 {[%emt 0:08:59]} ({Predecessor:} 10. f5 dxe4 11. dxe4 exf5 12. Bg5 h6 13. Bh4 Qc7 14. Kh1 fxe4 15. Nxe4 Nef5 16. Nf6+ Kh8 17. Nd5 {½-½ (46) Puranik,A (2479)-Konguvel,P (2388) Warsaw 2017}) 10... b5 {[%emt 0:04:13] Black is more active.} 11. Kh1 {[%emt 0:25:09]} Bb7 {[%emt 0:08:29] Black is slightly better.} 12. exd5 {[%emt 0:05:57]} exd5 {[%emt 0:01:48]} 13. Nxd4 {[%emt 0:02:48]} cxd4 {[%emt 0:02:04]} 14. Ne2 {[%emt 0:00:04]} ({Not} 14. Nxb5 $2 a6 15. g4 axb5 $19) 14... Nf5 {[%emt 0:00:38]} 15. Ng3 $1 {[%emt 0:01:10]} Qd7 {[%emt 0:08:31]} (15... Ne3 $11 16. Bxe3 dxe3) 16. Nxf5 $14 {[%emt 0:03:28]} Qxf5 {[%emt 0:00:50]} 17. g4 {[%emt 0:00:00]} Qd7 {[%emt 0:23:03]} 18. f5 {[%emt 0:00:24]} Be5 {[%emt 0:03:28]} (18... Rfc8 $14 {is superior.}) 19. f6 {[%emt 0:13:45]} (19. Bh6 $16) 19... Rfe8 $11 {[%emt 0:01:25]} 20. Bh6 {[%emt 0:02:01]} Bc8 {[%emt 0:07:42]} (20... Re6 $15) 21. h3 {[%emt 0:00:32]} Re6 {[%emt 0:00:46]} 22. Bg7 {[%emt 0:04:58]} (22. Bg5 $11 {keeps the balance.}) 22... Bc7 $17 {[%emt 0:00:27]} 23. Rf3 {[%emt 0:02:58]} (23. Bh6 $17) 23... Qd6 {[%emt 0:02:01][%csl Gc7][%cal Rd6h2]} 24. Qd2 {[%emt 0:00:34] Prevents Qh2+.} Bb7 {[%emt 0:00:40]} (24... Re3 $1 $19 {[%cal Re3f3]} 25. Raf1 h5) 25. Bh6 {[%emt 0:03:50] aiming for Bf4.} Rxf6 {[%emt 0:00:37]} 26. Rxf6 {[%emt 0:01:41]} Qxf6 {[%emt 0:00:02]} 27. Re1 $2 {[%emt 0:00:14][%mdl 8192] White does not recover from this.} (27. Bg5 $17 Qc6 28. Rf1) 27... Qh4 $19 {[%emt 0:00:54]} 28. Re2 {[%emt 0:01:02]} (28. Rf1 $142 Qxh3+ 29. Kg1) 28... Qxh3+ {[%emt 0:00:54]} 29. Kg1 {[%emt 0:00:03]} Qxg4+ {[%emt 0:04:00]} 30. Rg2 {[%emt 0:00:48]} Qh4 {[%emt 0:00:00] And now ...Re8 would win.} 31. Re2 {[%emt 0:00:43] Prevents Re8.} (31. Bg5 $142 Qh3 32. Qe1) 31... Bc6 {[%emt 0:00:00]} 32. Bg5 $2 {[%emt 0:00:37]} (32. Qg5 Qxg5+ 33. Bxg5) 32... Qg4+ {[%emt 0:00:00]} 33. Rg2 {[%emt 0:00:11]} Qh5 {[%emt 0:00:00] White must now prevent ...Re8.} 34. Bf6 {[%emt 0:00:14]} (34. Qe2 $142 Qh3 35. Qg4 Qxg4 36. Rxg4) 34... Re8 {[%emt 0:00:55]} 35. Rg5 {[%emt 0:01:35]} Qf3 {[%emt 0:01:17]} 36. Qf2 {[%emt 0:00:37] [#]} Qd1+ {[%emt 0:00:23] Weighted Error Value: White=1.22/Black=0.47} (36... Bh2+ $142 $1 {[%mdl 512]} 37. Kf1 Qh1+ 38. Rg1 Bxg1 39. Qxg1 {[#]} Re1+ $3 {[%mdl 512]} 40. Kxe1 Qxg1+ 41. Ke2 Qe3+ 42. Kf1 Qf3+ 43. Kg1 Qxf6 44. c3 dxc3 45. bxc3 d4 46. Bd5 Bxd5 47. c4 Qg5+ 48. Kf2 Qg2+ 49. Ke1 Bf3 50. cxb5 Qe2#) 0-1

[Event "1st Serbian League 2022"]
[Site "Vrnjacka Banja"]
[Date "2022.09.23"]
[Round "4.12"]
[White "Radojicic, Aleksandar M"]
[Black "Zlatanovic, Boroljub"]
[Result "0-1"]
[ECO "B08"]
[WhiteElo "2192"]
[BlackElo "2313"]
[Annotator "TA"]
[PlyCount "52"]
[EventDate "2022.09.20"]
[EventType "team-tourn"]
[EventCountry "SRB"]
[SourceTitle "playchess.com"]
[Source "ChessBase"]
[SourceQuality "1"]
[TimeControl "40/5400+30:1800+30"]

{[%evp 16,52,45,58,55,51,80,67,65,24,13,8,60,61,81,66,64,70,91,29,23,8,37,47,14,37,52,0,0,-55,-34,-339,-285,-2124,-2004,-29987,-29988,-29995,-29996]} 1. d4 {[%emt 0:00:02]} Nf6 {[%emt 0:00:15]} 2. Nc3 {[%emt 0:00:08]} g6 {[%emt 0:00:11]} 3. e4 {[%emt 0:00:10]} d6 {[%emt 0:00:08]} 4. Nf3 {[%emt 0:00:09]} Bg7 {[%emt 0:00:19]} 5. Be2 {[%emt 0:00:05]} O-O {[%emt 0:02:01]} 6. O-O {[%emt 0:00:08]} c6 {[%emt 0:02:35]} 7. a4 {[%emt 0:00:09]} Bg4 {[%emt 0:02:06]} 8. h3 {[%emt 0:08:30][%cal Bh2h3,Bh3h4,Bh4h5,Bh5g6,Bg6h7][%mdl 32]} Bxf3 {[%emt 0:00:50]} 9. Bxf3 {[%emt 0:00:02]} d5 {[%emt 0:07:05] B08: Pirc Defence: Classical System.} 10. e5 {[%emt 0:33:39][%cal Be4e5,Be5e6][%mdl 32]} Ne8 {[%emt 0:03:14]} 11. Re1 {[%emt 0:06:26] [#]} f6 $146 {[%emt 0:07:09] White is slightly better.} ({Predecessor:} 11... e6 12. Ne2 c5 13. c3 Nc6 14. g3 Nc7 15. Bg2 cxd4 16. cxd4 Na6 17. h4 Nab4 {0-1 (38) Demina,J (2357)-Matveeva,S (2411) Serpukhov 2008}) 12. e6 {[%emt 0:26:15]} f5 {[%emt 0:03:24]} 13. h4 {[%emt 0:05:27]} Nf6 {[%emt 0:03:04]} ({Black should play} 13... Nd6 $11) 14. Ne2 $14 {[%emt 0:03:46][%cal Oh4h5]} Na6 {[%emt 0:01:30][%cal Bb8a6,Ba6c7,Bc7e6][%mdl 32] [#]} 15. h5 $1 {[%emt 0:02:51]} Nc7 {[%emt 0:03:54]} 16. hxg6 $1 {[%emt 0:02:11]} Nxe6 {[%emt 0:09:49]} 17. Ng3 {[%emt 0:07:21]} ({White should try} 17. Nf4 $16 Nxf4 18. gxh7+ (18. Bxf4 hxg6 19. c3 Ne4 $17) 18... Kh8 19. Bxf4) 17... Ne4 $1 $11 {[%emt 0:03:18]} 18. Bxe4 {[%emt 0:00:48]} dxe4 {[%emt 0:01:32]} 19. gxh7+ {[%emt 0:00:04]} Kh8 {[%emt 0:00:23]} 20. c3 {[%emt 0:00:37]} Qe8 {[%emt 0:02:34]} 21. Nh5 {[%emt 0:01:28]} (21. Qh5 $14) 21... Qg6 {[%emt 0:04:07] [#] aiming for ...f4.} 22. Nxg7 {[%emt 0:00:32]} (22. Nf4 $11 Nxf4 23. Bxf4) 22... Kxg7 {[%emt 0:02:26] Dancing on a razor blade.} 23. b3 $2 {[%emt 0:00:36][%mdl 8192] Now White is beyond hope.} ({Wrong is} 23. Qb3 $2 Rh8 24. Qxb7 Kf7 $19) (23. f3 $1 $15) 23... f4 {[%emt 0:04:43][%cal Bf5f4,Bf4f3][%mdl 32]} 24. Qe2 {[%emt 0:00:33]} (24. f3 Ng5 25. Kf1 (25. fxe4 $2 Nh3+ 26. Kf1 f3 $19)) 24... f3 $19 {[%emt 0:01:09][%csl Gf3][%cal Rg6g2]} 25. Qf1 {[%emt 0:00:01]} Rh8 {[%emt 0:00:40]} 26. g3 {[%emt 0:00:50]} Qxh7 {[%emt 0:00:15] Weighted Error Value: White=0.87/Black=0.20 (precise)} 0-1

[Event "1st Serbian League 2022"]
[Site "Vrnjacka Banja"]
[Date "2022.09.23"]
[Round "4.13"]
[White "Indjic, Aleksandar"]
[Black "Predojevic, Borki"]
[Result "1/2-1/2"]
[ECO "A06"]
[WhiteElo "2628"]
[BlackElo "2584"]
[Annotator "TA"]
[PlyCount "27"]
[EventDate "2022.09.20"]
[EventType "team-tourn"]
[EventCountry "SRB"]
[SourceTitle "playchess.com"]
[Source "ChessBase"]
[SourceQuality "1"]
[TimeControl "40/5400+30:1800+30"]

{[%evp 9,27,10,10,5,7,4,6,8,8,-2,13,6,8,12,16,18,22,18,16,0]} 1. Nf3 {[%emt 0:01:34]} d5 {[%emt 0:01:03]} 2. e3 {[%emt 0:00:11]} Nf6 {[%emt 0:01:55]} 3. b3 {[%emt 0:00:34]} Bf5 {[%emt 0:05:08]} 4. Ba3 {[%emt 0:00:25]} Nbd7 {[%emt 0:03:18]} 5. d4 {[%emt 0:00:09]} c6 {[%emt 0:05:36] The position is equal.} 6. Bd3 {[%emt 0:00:44] A06: Réti Opening: 1 Nf3 d5.} Bg4 {[%emt 0:09:02]} 7. Bb2 {[%emt 0:08:19]} e6 {[%emt 0:02:06]} 8. Nbd2 {[%emt 0:00:19][%cal Bb1d2,Bd2f3,Bf3e5][%mdl 32]} Bd6 {[%emt 0:01:08]} 9. Qc1 {[%emt 0:00:11]} Qb8 {[%emt 0:15:31]} 10. c4 {[%emt 0:02:20]} O-O {[%emt 0:07:51] [#]} 11. h3 $146 {[%emt 0:09:38]} ({Predecessor:} 11. Qc3 b5 12. c5 b4 13. Qc2 Bc7 14. h3 Bh5 15. O-O e5 16. dxe5 Nxe5 17. Nxe5 Bxe5 18. Bd4 Bxd4 19. exd4 {½-½ (41) Ingason,S (1887)-Pecurica,M (2113) Obrenovac 2010}) 11... Bxf3 {[%emt 0:02:20]} 12. Nxf3 {[%emt 0:00:23]} e5 {[%emt 0:01:03]} 13. dxe5 {[%emt 0:07:52]} Nxe5 {[%emt 0:00:52]} 14. Nxe5 {[%emt 0:01:37] An interesting draw.  Weighted Error Value: White=0.01 (flawless) /Black=0.03 (flawless)} 1/2-1/2